[Event "*** Titled Tuesday Blitz"]
[Site "Chess.com"]
[Date "2020.05.26"]
[Round "3"]
[White "Karinaa87"]
[Black "MusicCityMaster"]
[Result "1-0"]
[WhiteElo "2552"]
[BlackElo "2351"]
[TimeControl "180+1"]
[EndTime "10:27:50 PDT"]
[Termination "Karinaa87 won by resignation"]

1. d4 {[%clk 0:03:00.9]} 1... Nf6 {[%clk 0:02:59.5]} 2. c4 {[%clk 0:03:00.3]}
2... c5 {[%clk 0:02:59.2]} 3. d5 {[%clk 0:02:59.4]} 3... b5 {[%clk 0:02:59]} 4.
cxb5 {[%clk 0:03:00.3]} 4... a6 {[%clk 0:02:58.6]} 5. e3 {[%clk 0:02:54.7]} 5...
axb5 {[%clk 0:02:56.2]} 6. Bxb5 {[%clk 0:02:53.4]} 6... Qa5+ {[%clk 0:02:55.2]}
7. Nc3 {[%clk 0:02:53.7]} 7... Bb7 {[%clk 0:02:49.6]} 8. Bc4 {[%clk 0:02:47.1]}
8... e6 {[%clk 0:02:47]} 9. Bd2 {[%clk 0:02:42.8]} 9... Qb6 {[%clk 0:02:45.6]}
10. e4 {[%clk 0:02:36.4]} 10... Nxe4 {[%clk 0:02:41]} 11. Nxe4 {[%clk
0:02:34.3]} 11... exd5 {[%clk 0:02:40.3]} 12. Ng5 {[%clk 0:02:12.8]} 12... dxc4
{[%clk 0:02:36.8]} 13. Qe2+ {[%clk 0:02:12.9]} 13... Be7 {[%clk 0:02:34.3]} 14.
N1f3 {[%clk 0:02:09.7]} 14... Nc6 {[%clk 0:02:28.7]} 15. O-O {[%clk 0:01:58.3]}
15... h6 {[%clk 0:02:02.4]} 16. Ne4 {[%clk 0:01:49.5]} 16... O-O {[%clk
0:02:00.5]} 17. Nc3 {[%clk 0:01:38.3]} 17... Rfe8 {[%clk 0:01:41.7]} 18. Nd5
{[%clk 0:01:27.3]} 18... Qd8 {[%clk 0:01:31]} 19. Bc3 {[%clk 0:01:22.2]} 19...
Nd4 {[%clk 0:01:14]} 20. Qxc4 {[%clk 0:01:13.6]} 20... Ba6 {[%clk 0:00:54.7]}
21. Nxe7+ {[%clk 0:01:06.7]} 21... Qxe7 {[%clk 0:00:46.4]} 22. Qd5 {[%clk
0:01:06.1]} 22... Nxf3+ {[%clk 0:00:34.8]} 23. Qxf3 {[%clk 0:01:04.3]} 23...
Bxf1 {[%clk 0:00:34.7]} 24. Rxf1 {[%clk 0:01:04.5]} 24... Rxa2 {[%clk
0:00:30.8]} 25. Qg4 {[%clk 0:00:57.9]} 25... f6 {[%clk 0:00:21.7]} 26. Qc4+
{[%clk 0:00:55.6]} 26... Qe6 {[%clk 0:00:17.3]} 27. Qxc5 {[%clk 0:00:55.4]}
27... Rea8 {[%clk 0:00:14.3]} 28. b4 {[%clk 0:00:47]} 28... Re2 {[%clk
0:00:13.7]} 29. b5 {[%clk 0:00:42.9]} 29... Raa2 {[%clk 0:00:13]} 30. b6 {[%clk
0:00:38.5]} 30... Qe4 {[%clk 0:00:12.5]} 31. Qc8+ {[%clk 0:00:32.2]} 31... Kh7
{[%clk 0:00:11.8]} 32. b7 {[%clk 0:00:25.4]} 32... Rxf2 {[%clk 0:00:12.1]} 33.
Rxf2 {[%clk 0:00:24.7]} 33... Qe3 {[%clk 0:00:12.5]} 34. Be1 {[%clk 0:00:15.6]}
34... Qxe1+ {[%clk 0:00:12.7]} 35. Rf1 {[%clk 0:00:15.7]} 35... Qe3+ {[%clk
0:00:13.4]} 36. Kh1 {[%clk 0:00:15.8]} 36... Qe2 {[%clk 0:00:14]} 37. Rg1 {[%clk
0:00:15.5]} 37... Rb2 {[%clk 0:00:12.2]} 38. b8=Q {[%clk 0:00:15.3]} 38... Rxb8
{[%clk 0:00:12.1]} 39. Qxb8 {[%clk 0:00:16.2]} 39... d5 {[%clk 0:00:12.4]} 40.
Qb2 {[%clk 0:00:15.8]} 40... d4 {[%clk 0:00:12.8]} 41. Qxe2 {[%clk 0:00:15.3]}
41... d3 {[%clk 0:00:12.7]} 42. Qxd3+ {[%clk 0:00:15.4]} 1-0

[Event "*** Titled Tuesday Blitz"]
[Site "Chess.com"]
[Date "2020.05.26"]
[Round "3"]
[White "lili_ani"]
[Black "Tenamu"]
[Result "1-0"]
[WhiteElo "2554"]
[BlackElo "2351"]
[TimeControl "180+1"]
[EndTime "10:27:52 PDT"]
[Termination "lili_ani won by resignation"]

1. e4 {[%clk 0:03:00.9]} 1... e6 {[%clk 0:02:55.8]} 2. d4 {[%clk 0:02:54.9]}
2... d5 {[%clk 0:02:55.7]} 3. exd5 {[%clk 0:02:47.4]} 3... exd5 {[%clk 0:02:55]}
4. Nf3 {[%clk 0:02:47.9]} 4... Bd6 {[%clk 0:02:54.3]} 5. c4 {[%clk 0:02:40.4]}
5... Bg4 {[%clk 0:02:45.7]} 6. Nc3 {[%clk 0:02:27.8]} 6... dxc4 {[%clk
0:02:34.8]} 7. Bxc4 {[%clk 0:02:26.6]} 7... Nf6 {[%clk 0:02:01.5]} 8. O-O {[%clk
0:02:25.4]} 8... O-O {[%clk 0:02:01.3]} 9. Bg5 {[%clk 0:02:23.3]} 9... Nbd7
{[%clk 0:02:00.3]} 10. Qd3 {[%clk 0:02:21.4]} 10... Bh5 {[%clk 0:01:46.4]} 11.
Rfe1 {[%clk 0:02:17.2]} 11... c6 {[%clk 0:01:39.6]} 12. Ne5 {[%clk 0:02:10.3]}
12... Qc7 {[%clk 0:01:28.8]} 13. f4 {[%clk 0:02:00.8]} 13... Rae8 {[%clk
0:01:12.8]} 14. Bb3 {[%clk 0:01:38.7]} 14... a6 {[%clk 0:01:02.6]} 15. Rac1
{[%clk 0:01:21]} 15... c5 {[%clk 0:00:57]} 16. Qh3 {[%clk 0:00:56.1]} 16... Bg6
{[%clk 0:00:16.2]} 17. Nd5 {[%clk 0:00:48.7]} 17... Nxd5 {[%clk 0:00:15.3]} 18.
Nxd7 {[%clk 0:00:31.3]} 18... Rxe1+ {[%clk 0:00:12.8]} 19. Rxe1 {[%clk
0:00:30.5]} 19... cxd4 {[%clk 0:00:12.2]} 20. Nxf8 {[%clk 0:00:23.5]} 20... Bxf8
{[%clk 0:00:12.1]} 21. Bxd5 {[%clk 0:00:22.6]} 21... Qc5 {[%clk 0:00:12.2]} 22.
Bb3 {[%clk 0:00:19.8]} 22... d3+ {[%clk 0:00:11.9]} 23. Kh1 {[%clk 0:00:20]}
23... d2 {[%clk 0:00:12.1]} 24. Rd1 {[%clk 0:00:19.6]} 24... Qc1 {[%clk
0:00:11.3]} 25. Qe3 {[%clk 0:00:16.8]} 25... Qxb2 {[%clk 0:00:09.8]} 26. Qxd2
{[%clk 0:00:16.3]} 26... Qa3 {[%clk 0:00:09]} 27. Bh4 {[%clk 0:00:12.5]} 27...
Bh5 {[%clk 0:00:08.5]} 28. Rf1 {[%clk 0:00:10.8]} 28... h6 {[%clk 0:00:08.7]}
29. Bf2 {[%clk 0:00:10.4]} 29... Bb4 {[%clk 0:00:08.6]} 30. Qd5 {[%clk
0:00:07.6]} 30... Bg6 {[%clk 0:00:07.8]} 31. f5 {[%clk 0:00:07.3]} 31... Bh5
{[%clk 0:00:07.8]} 32. f6 {[%clk 0:00:06.7]} 32... gxf6 {[%clk 0:00:06.9]} 33.
Qxh5 {[%clk 0:00:05.8]} 1-0

[Event "*** Titled Tuesday Blitz"]
[Site "Chess.com"]
[Date "2020.05.26"]
[Round "3"]
[White "NefeLV"]
[Black "PawnEatingZombie"]
[Result "0-1"]
[WhiteElo "1789"]
[BlackElo "2246"]
[TimeControl "180+1"]
[EndTime "10:27:52 PDT"]
[Termination "PawnEatingZombie won on time"]

1. c4 {[%clk 0:03:00.9]} 1... e6 {[%clk 0:02:59.5]} 2. d4 {[%clk 0:02:54.4]}
2... d5 {[%clk 0:02:58.9]} 3. Nc3 {[%clk 0:02:53.3]} 3... Bb4 {[%clk 0:02:58.7]}
4. Bd2 {[%clk 0:02:47.4]} 4... Nf6 {[%clk 0:02:46.3]} 5. a3 {[%clk 0:02:37.6]}
5... Bxc3 {[%clk 0:02:44.5]} 6. Bxc3 {[%clk 0:02:34.6]} 6... O-O {[%clk
0:02:44]} 7. e3 {[%clk 0:02:34]} 7... Ne4 {[%clk 0:02:42]} 8. Nf3 {[%clk
0:02:32.6]} 8... Nxc3 {[%clk 0:02:40.2]} 9. bxc3 {[%clk 0:02:32.1]} 9... c5
{[%clk 0:02:40.9]} 10. cxd5 {[%clk 0:02:28]} 10... exd5 {[%clk 0:02:39.8]} 11.
Bd3 {[%clk 0:02:25.8]} 11... b6 {[%clk 0:02:39.4]} 12. O-O {[%clk 0:02:24.9]}
12... Ba6 {[%clk 0:02:38.9]} 13. a4 {[%clk 0:02:11.5]} 13... Bxd3 {[%clk
0:02:36.7]} 14. Qxd3 {[%clk 0:02:10.7]} 14... c4 {[%clk 0:02:35.3]} 15. Qf5
{[%clk 0:02:08.4]} 15... Nc6 {[%clk 0:02:24.1]} 16. Ng5 {[%clk 0:02:01.7]} 16...
g6 {[%clk 0:02:09.7]} 17. Qf4 {[%clk 0:01:51.2]} 17... Kg7 {[%clk 0:01:43.5]}
18. e4 {[%clk 0:01:39.5]} 18... h6 {[%clk 0:01:40.7]} 19. Nf3 {[%clk 0:01:35.4]}
19... dxe4 {[%clk 0:01:32.6]} 20. Qxe4 {[%clk 0:01:34.4]} 20... Rc8 {[%clk
0:01:24.3]} 21. Rfe1 {[%clk 0:01:26.7]} 21... Qf6 {[%clk 0:01:23.2]} 22. Ne5
{[%clk 0:01:07.9]} 22... Nxe5 {[%clk 0:01:21.6]} 23. dxe5 {[%clk 0:01:08.8]}
23... Qe6 {[%clk 0:01:20.1]} 24. a5 {[%clk 0:01:03.4]} 24... b5 {[%clk
0:01:18.4]} 25. f4 {[%clk 0:01:01.9]} 25... a6 {[%clk 0:01:15.8]} 26. Rad1
{[%clk 0:01:00.9]} 26... Rfd8 {[%clk 0:01:10.4]} 27. Qb7 {[%clk 0:00:53.2]}
27... Rd3 {[%clk 0:01:02.3]} 28. Rc1 {[%clk 0:00:40.2]} 28... Rcd8 {[%clk
0:01:01.1]} 29. Qe4 {[%clk 0:00:35]} 29... Rd2 {[%clk 0:00:59.8]} 30. Re2 {[%clk
0:00:30.7]} 30... Qe7 {[%clk 0:00:53.8]} 31. h3 {[%clk 0:00:22.7]} 31... Qc5+
{[%clk 0:00:53.1]} 32. Kh2 {[%clk 0:00:20]} 32... Rxe2 {[%clk 0:00:40.3]} 33.
Qxe2 {[%clk 0:00:19.4]} 33... Qd5 {[%clk 0:00:40.6]} 34. Re1 {[%clk 0:00:14.5]}
34... Qd3 {[%clk 0:00:28]} 35. e6 {[%clk 0:00:11.8]} 35... Qxe2 {[%clk
0:00:21.6]} 36. Rxe2 {[%clk 0:00:11.8]} 36... f5 {[%clk 0:00:20.5]} 37. Re5
{[%clk 0:00:05.9]} 37... Kf6 {[%clk 0:00:17]} 38. Kg3 {[%clk 0:00:02.9]} 38...
Re8 {[%clk 0:00:16.6]} 39. e7 {[%clk 0:00:01.3]} 39... Rxe7 {[%clk 0:00:16.3]}
0-1

[Event "*** Titled Tuesday Blitz"]
[Site "Chess.com"]
[Date "2020.05.26"]
[Round "3"]
[White "Shield12"]
[Black "zubridis"]
[Result "1-0"]
[WhiteElo "2817"]
[BlackElo "2449"]
[TimeControl "180+1"]
[EndTime "10:27:53 PDT"]
[Termination "Shield12 won on time"]

1. e4 {[%clk 0:03:00.9]} 1... g6 {[%clk 0:02:58.4]} 2. d4 {[%clk 0:03:00.6]}
2... Bg7 {[%clk 0:02:59]} 3. Nf3 {[%clk 0:03:01.2]} 3... d6 {[%clk 0:02:59.3]}
4. Bc4 {[%clk 0:03:01.2]} 4... e6 {[%clk 0:02:58.5]} 5. c3 {[%clk 0:03:00.2]}
5... a6 {[%clk 0:02:58.5]} 6. Nbd2 {[%clk 0:02:59.5]} 6... Ne7 {[%clk
0:02:57.8]} 7. Bd3 {[%clk 0:02:58.5]} 7... Nbc6 {[%clk 0:02:56.4]} 8. h3 {[%clk
0:02:56.5]} 8... O-O {[%clk 0:02:53.7]} 9. O-O {[%clk 0:02:55]} 9... h6 {[%clk
0:02:52.6]} 10. Re1 {[%clk 0:02:54.6]} 10... e5 {[%clk 0:02:44]} 11. dxe5 {[%clk
0:02:54.3]} 11... dxe5 {[%clk 0:02:41.1]} 12. Qe2 {[%clk 0:02:51]} 12... f5
{[%clk 0:02:16.9]} 13. b4 {[%clk 0:02:48.5]} 13... f4 {[%clk 0:02:08.2]} 14. a4
{[%clk 0:02:48]} 14... g5 {[%clk 0:02:02.4]} 15. Bc4+ {[%clk 0:02:45.1]} 15...
Kh7 {[%clk 0:01:57.5]} 16. Nf1 {[%clk 0:02:19.2]} 16... Ng6 {[%clk 0:01:53.2]}
17. Ba3 {[%clk 0:02:16.4]} 17... Qf6 {[%clk 0:01:37.4]} 18. N3h2 {[%clk
0:02:06.6]} 18... Nh4 {[%clk 0:01:13.1]} 19. Nd2 {[%clk 0:01:42.3]} 19... Re8
{[%clk 0:00:57.4]} 20. Qh5 {[%clk 0:01:38.3]} 20... Qg6 {[%clk 0:00:49.4]} 21.
Qxg6+ {[%clk 0:01:37.6]} 21... Kxg6 {[%clk 0:00:48.1]} 22. Rad1 {[%clk 0:01:27]}
22... Kf6 {[%clk 0:00:33.9]} 23. Nb3 {[%clk 0:01:24.3]} 23... Bf8 {[%clk
0:00:31.8]} 24. Bb2 {[%clk 0:01:21.4]} 24... f3 {[%clk 0:00:27.2]} 25. g3 {[%clk
0:01:01]} 25... Ng6 {[%clk 0:00:26.6]} 26. Ng4+ {[%clk 0:00:57.3]} 26... Kg7
{[%clk 0:00:24.4]} 27. Kh2 {[%clk 0:00:53.9]} 27... h5 {[%clk 0:00:22]} 28. Ne3
{[%clk 0:00:53.9]} 28... Nge7 {[%clk 0:00:15.9]} 29. Nd2 {[%clk 0:00:51.4]}
29... g4 {[%clk 0:00:15]} 30. Bb3 {[%clk 0:00:44.6]} 30... Kf6 {[%clk
0:00:09.5]} 31. Nd5+ {[%clk 0:00:42.3]} 31... Nxd5 {[%clk 0:00:07.6]} 32. exd5
{[%clk 0:00:43.2]} 32... Nd8 {[%clk 0:00:06.3]} 33. Ne4+ {[%clk 0:00:39.5]}
33... Kg7 {[%clk 0:00:05.4]} 34. d6 {[%clk 0:00:29.1]} 34... cxd6 {[%clk
0:00:05.3]} 35. Nxd6 {[%clk 0:00:28.1]} 35... Bxd6 {[%clk 0:00:05.6]} 36. Rxd6
{[%clk 0:00:29]} 36... Nf7 {[%clk 0:00:04.3]} 37. Rb6 {[%clk 0:00:23.8]} 37...
gxh3 {[%clk 0:00:03.6]} 38. Re3 {[%clk 0:00:21.9]} 1-0

[Event "*** Titled Tuesday Blitz"]
[Site "Chess.com"]
[Date "2020.05.26"]
[Round "3"]
[White "dpopadic"]
[Black "CraiggoryC"]
[Result "1-0"]
[WhiteElo "2385"]
[BlackElo "2120"]
[TimeControl "180+1"]
[EndTime "10:27:53 PDT"]
[Termination "dpopadic won on time"]

1. e4 {[%clk 0:03:00.9]} 1... e6 {[%clk 0:03:00]} 2. d4 {[%clk 0:03:00.2]} 2...
d5 {[%clk 0:03:00.4]} 3. e5 {[%clk 0:03:00]} 3... c5 {[%clk 0:03:00.1]} 4. Qg4
{[%clk 0:02:59.9]} 4... Nc6 {[%clk 0:02:45.9]} 5. Nf3 {[%clk 0:02:59.2]} 5...
cxd4 {[%clk 0:02:45.4]} 6. Bd3 {[%clk 0:02:58.8]} 6... Qc7 {[%clk 0:02:45]} 7.
Qg3 {[%clk 0:02:58.3]} 7... f6 {[%clk 0:02:42.6]} 8. exf6 {[%clk 0:02:30]} 8...
Qxg3 {[%clk 0:02:41.8]} 9. f7+ {[%clk 0:02:27]} 9... Kxf7 {[%clk 0:02:40.2]} 10.
hxg3 {[%clk 0:02:27.1]} 10... Nf6 {[%clk 0:02:33]} 11. Bf4 {[%clk 0:02:19.2]}
11... Bb4+ {[%clk 0:02:19.8]} 12. Nbd2 {[%clk 0:02:17.3]} 12... e5 {[%clk
0:02:19.5]} 13. Nxe5+ {[%clk 0:02:02.1]} 13... Nxe5 {[%clk 0:02:18.8]} 14. Bxe5
{[%clk 0:02:02.4]} 14... Re8 {[%clk 0:02:10.1]} 15. f4 {[%clk 0:02:01.7]} 15...
Ng4 {[%clk 0:01:51.8]} 16. O-O-O {[%clk 0:01:48.5]} 16... Nf2 {[%clk 0:01:45.8]}
17. Bxd4 {[%clk 0:01:33]} 17... Nxh1 {[%clk 0:01:23.5]} 18. Rxh1 {[%clk
0:01:31.2]} 18... Bxd2+ {[%clk 0:01:15.6]} 19. Kxd2 {[%clk 0:01:30.6]} 19... h6
{[%clk 0:01:15]} 20. f5 {[%clk 0:01:22.4]} 20... Bd7 {[%clk 0:00:54.8]} 21. f6
{[%clk 0:01:18.6]} 21... gxf6 {[%clk 0:00:48.4]} 22. Rxh6 {[%clk 0:01:18]} 22...
Rg8 {[%clk 0:00:44.4]} 23. Rxf6+ {[%clk 0:01:13.6]} 23... Ke7 {[%clk 0:00:44.2]}
24. Rf3 {[%clk 0:01:08.8]} 24... b6 {[%clk 0:00:24.6]} 25. Be5 {[%clk
0:01:05.2]} 25... Raf8 {[%clk 0:00:20.2]} 26. Bf4 {[%clk 0:01:05]} 26... Bf5
{[%clk 0:00:15.2]} 27. Bxf5 {[%clk 0:00:46.8]} 27... Rxf5 {[%clk 0:00:14.9]} 28.
Ra3 {[%clk 0:00:47.4]} 28... a5 {[%clk 0:00:13.3]} 29. Rb3 {[%clk 0:00:46.5]}
29... Rg6 {[%clk 0:00:12.7]} 30. Rb5 {[%clk 0:00:44.4]} 30... Kd7 {[%clk
0:00:10.7]} 31. Rb3 {[%clk 0:00:42.7]} 31... Kc6 {[%clk 0:00:10.5]} 32. Rc3+
{[%clk 0:00:42.5]} 32... Kb5 {[%clk 0:00:09.8]} 33. Rc8 {[%clk 0:00:40.6]} 33...
d4 {[%clk 0:00:09.2]} 34. Rd8 {[%clk 0:00:37.2]} 34... Kc5 {[%clk 0:00:08]} 35.
Kd3 {[%clk 0:00:32.2]} 35... Rc6 {[%clk 0:00:03.9]} 36. Rxd4 {[%clk 0:00:27.2]}
36... Rd5 {[%clk 0:00:04]} 37. Rxd5+ {[%clk 0:00:23.6]} 37... Kxd5 {[%clk
0:00:04.9]} 38. a4 {[%clk 0:00:20.3]} 38... Rc4 {[%clk 0:00:03.4]} 39. b3 {[%clk
0:00:19.8]} 39... Rc6 {[%clk 0:00:02.3]} 40. Be3 {[%clk 0:00:19.3]} 40... Rg6
{[%clk 0:00:01.5]} 41. Bf4 {[%clk 0:00:19.2]} 1-0

[Event "*** Titled Tuesday Blitz"]
[Site "Chess.com"]
[Date "2020.05.26"]
[Round "3"]
[White "BelaKis"]
[Black "nitpicker"]
[Result "1-0"]
[WhiteElo "2133"]
[BlackElo "2292"]
[TimeControl "180+1"]
[EndTime "10:27:54 PDT"]
[Termination "BelaKis won on time"]

1. Nf3 {[%clk 0:03:00.9]} 1... Nf6 {[%clk 0:02:55.6]} 2. g3 {[%clk 0:03:01]}
2... g6 {[%clk 0:02:53.2]} 3. Bg2 {[%clk 0:03:01.4]} 3... Bg7 {[%clk 0:02:52.9]}
4. O-O {[%clk 0:03:02.1]} 4... c5 {[%clk 0:02:46.7]} 5. c4 {[%clk 0:02:58.3]}
5... O-O {[%clk 0:02:42.9]} 6. Nc3 {[%clk 0:02:56.8]} 6... d5 {[%clk 0:02:41.7]}
7. cxd5 {[%clk 0:02:44.6]} 7... Nxd5 {[%clk 0:02:41.3]} 8. Na4 {[%clk
0:02:21.5]} 8... b6 {[%clk 0:02:35.6]} 9. d4 {[%clk 0:02:16.9]} 9... cxd4 {[%clk
0:02:23.8]} 10. Nxd4 {[%clk 0:02:16.2]} 10... Bb7 {[%clk 0:02:24.2]} 11. Nb5
{[%clk 0:01:47.9]} 11... Qd7 {[%clk 0:01:44.9]} 12. Nac3 {[%clk 0:01:35.5]}
12... e6 {[%clk 0:01:29.2]} 13. Nxd5 {[%clk 0:01:29]} 13... Bxd5 {[%clk
0:01:20.8]} 14. Bxd5 {[%clk 0:01:25.4]} 14... exd5 {[%clk 0:01:18.2]} 15. Nd4
{[%clk 0:01:23.9]} 15... Nc6 {[%clk 0:01:13.2]} 16. Be3 {[%clk 0:00:37.3]} 16...
Ne5 {[%clk 0:01:05.1]} 17. Kg2 {[%clk 0:00:32.4]} 17... Nc4 {[%clk 0:01:01.1]}
18. Bc1 {[%clk 0:00:28.2]} 18... Rfe8 {[%clk 0:00:52.4]} 19. b3 {[%clk
0:00:27.3]} 19... Nd6 {[%clk 0:00:50.1]} 20. Be3 {[%clk 0:00:22.7]} 20... Ne4
{[%clk 0:00:43.9]} 21. Rc1 {[%clk 0:00:22.2]} 21... Rac8 {[%clk 0:00:37.4]} 22.
Qd3 {[%clk 0:00:21.7]} 22... f5 {[%clk 0:00:35.4]} 23. Rxc8 {[%clk 0:00:20.7]}
23... Rxc8 {[%clk 0:00:34.2]} 24. Rc1 {[%clk 0:00:21.6]} 24... Rxc1 {[%clk
0:00:30.9]} 25. Bxc1 {[%clk 0:00:22.5]} 25... Qc7 {[%clk 0:00:29.4]} 26. Be3
{[%clk 0:00:22.4]} 26... Qc3 {[%clk 0:00:27.2]} 27. Ne6 {[%clk 0:00:19.9]} 27...
Qxd3 {[%clk 0:00:15.2]} 28. exd3 {[%clk 0:00:20.8]} 28... Nd6 {[%clk 0:00:14.6]}
29. d4 {[%clk 0:00:17.3]} 29... Nb5 {[%clk 0:00:10.6]} 30. a4 {[%clk 0:00:14.9]}
30... Nc3 {[%clk 0:00:09.1]} 31. Nxg7 {[%clk 0:00:06.7]} 31... Kxg7 {[%clk
0:00:08.8]} 32. Bf4 {[%clk 0:00:07.4]} 32... a6 {[%clk 0:00:08.9]} 33. Bc7
{[%clk 0:00:06.9]} 33... b5 {[%clk 0:00:08.4]} 34. axb5 {[%clk 0:00:07.8]} 34...
axb5 {[%clk 0:00:05.8]} 35. Be5+ {[%clk 0:00:08.7]} 35... Kf7 {[%clk 0:00:05.4]}
36. Kf3 {[%clk 0:00:09.6]} 36... Ke6 {[%clk 0:00:05.3]} 37. Ke3 {[%clk 0:00:10]}
37... Ne4 {[%clk 0:00:02.8]} 38. f3 {[%clk 0:00:10.1]} 38... Ng5 {[%clk
0:00:02.2]} 39. h4 {[%clk 0:00:10.4]} 39... Nf7 {[%clk 0:00:02.1]} 40. Bc7
{[%clk 0:00:10.3]} 1-0

[Event "*** Titled Tuesday Blitz"]
[Site "Chess.com"]
[Date "2020.05.26"]
[Round "3"]
[White "dopolian"]
[Black "Turquoise_2701"]
[Result "1-0"]
[WhiteElo "2324"]
[BlackElo "2145"]
[TimeControl "180+1"]
[EndTime "10:27:55 PDT"]
[Termination "dopolian won by resignation"]

1. Nf3 {[%clk 0:03:00.9]} 1... d5 {[%clk 0:02:57.8]} 2. e3 {[%clk 0:02:59.6]}
2... Nf6 {[%clk 0:02:51.8]} 3. b3 {[%clk 0:02:57.7]} 3... c6 {[%clk 0:02:47.2]}
4. Bb2 {[%clk 0:02:57.4]} 4... Nbd7 {[%clk 0:02:47.8]} 5. d4 {[%clk 0:02:56.5]}
5... g6 {[%clk 0:02:42.1]} 6. Nbd2 {[%clk 0:02:55.3]} 6... Bg7 {[%clk
0:02:42.7]} 7. c4 {[%clk 0:02:53.5]} 7... O-O {[%clk 0:02:41.2]} 8. Bd3 {[%clk
0:02:53.3]} 8... Re8 {[%clk 0:02:35.4]} 9. O-O {[%clk 0:02:50.9]} 9... Nf8
{[%clk 0:02:35.8]} 10. e4 {[%clk 0:02:50.3]} 10... dxe4 {[%clk 0:02:35]} 11.
Nxe4 {[%clk 0:02:51.2]} 11... Bg4 {[%clk 0:02:31.6]} 12. h3 {[%clk 0:02:49.4]}
12... Bxf3 {[%clk 0:02:19.1]} 13. Qxf3 {[%clk 0:02:50.3]} 13... Nxe4 {[%clk
0:02:16.8]} 14. Qxe4 {[%clk 0:02:42.2]} 14... c5 {[%clk 0:02:12.6]} 15. Qxb7
{[%clk 0:02:33.7]} 15... cxd4 {[%clk 0:02:06.2]} 16. Rfe1 {[%clk 0:02:22.6]}
16... e5 {[%clk 0:02:04.7]} 17. Be4 {[%clk 0:02:14.9]} 17... Rb8 {[%clk
0:01:52]} 18. Qxa7 {[%clk 0:02:10.9]} 18... Ne6 {[%clk 0:00:28]} 19. Bd5 {[%clk
0:01:59.8]} 19... Qf6 {[%clk 0:00:17.9]} 20. Bc1 {[%clk 0:01:19.4]} 20... Bf8
{[%clk 0:00:12]} 21. Bd2 {[%clk 0:01:05.9]} 21... Nf4 {[%clk 0:00:11.5]} 22.
Bxf4 {[%clk 0:01:05.1]} 22... Qxf4 {[%clk 0:00:10.6]} 23. Re4 {[%clk 0:01:04.4]}
23... Qf6 {[%clk 0:00:10]} 24. Rae1 {[%clk 0:00:50.2]} 24... Bb4 {[%clk
0:00:10.5]} 25. Rd1 {[%clk 0:00:39.1]} 25... Rbd8 {[%clk 0:00:10.3]} 26. a3
{[%clk 0:00:30.8]} 26... Bc3 {[%clk 0:00:10.4]} 27. b4 {[%clk 0:00:29]} 27...
Re7 {[%clk 0:00:10.7]} 28. Qa4 {[%clk 0:00:28]} 28... Qg5 {[%clk 0:00:06]} 29.
Qb3 {[%clk 0:00:22]} 29... Rf8 {[%clk 0:00:05.1]} 30. c5 {[%clk 0:00:19.8]}
30... Kg7 {[%clk 0:00:05.7]} 31. h4 {[%clk 0:00:09.7]} 31... f5 {[%clk
0:00:06.3]} 32. hxg5 {[%clk 0:00:09.7]} 32... fxe4 {[%clk 0:00:06.5]} 33. Bxe4
{[%clk 0:00:10.6]} 33... Rf4 {[%clk 0:00:06.2]} 34. f3 {[%clk 0:00:09.8]} 34...
d3 {[%clk 0:00:03]} 35. Qxc3 {[%clk 0:00:08.7]} 1-0

[Event "*** Titled Tuesday Blitz"]
[Site "Chess.com"]
[Date "2020.05.26"]
[Round "3"]
[White "talman67"]
[Black "TranJMinh"]
[Result "0-1"]
[WhiteElo "2566"]
[BlackElo "2791"]
[TimeControl "180+1"]
[EndTime "10:27:56 PDT"]
[Termination "TranJMinh won by resignation"]

1. e4 {[%clk 0:03:00.9]} 1... c5 {[%clk 0:02:59.7]} 2. Nf3 {[%clk 0:03:01.1]}
2... d6 {[%clk 0:02:59.9]} 3. d4 {[%clk 0:03:01.6]} 3... cxd4 {[%clk 0:03:00.8]}
4. Nxd4 {[%clk 0:03:02.4]} 4... Nf6 {[%clk 0:03:01.5]} 5. Nc3 {[%clk 0:03:02.9]}
5... a6 {[%clk 0:03:02.1]} 6. h3 {[%clk 0:03:02.6]} 6... e5 {[%clk 0:03:02.4]}
7. Nb3 {[%clk 0:03:02.9]} 7... Be6 {[%clk 0:03:02.6]} 8. f4 {[%clk 0:03:03]}
8... Be7 {[%clk 0:03:01.9]} 9. Qe2 {[%clk 0:02:43.4]} 9... b5 {[%clk 0:02:53.4]}
10. a4 {[%clk 0:02:31.9]} 10... b4 {[%clk 0:02:32.9]} 11. Na2 {[%clk 0:02:18.9]}
11... a5 {[%clk 0:02:20.9]} 12. Bd2 {[%clk 0:02:13.3]} 12... O-O {[%clk
0:02:17.1]} 13. f5 {[%clk 0:02:09.5]} 13... Bd7 {[%clk 0:02:12.5]} 14. Nac1
{[%clk 0:02:07.6]} 14... d5 {[%clk 0:02:06.7]} 15. exd5 {[%clk 0:01:51.9]} 15...
Bxf5 {[%clk 0:02:01.2]} 16. Qxe5 {[%clk 0:01:34]} 16... Bxc2 {[%clk 0:01:47]}
17. Bb5 {[%clk 0:01:34]} 17... Bd6 {[%clk 0:01:18.4]} 18. Qg5 {[%clk 0:01:27.7]}
18... Qc7 {[%clk 0:00:33.7]} 19. O-O {[%clk 0:01:17.3]} 19... Bh2+ {[%clk
0:00:28.6]} 20. Kh1 {[%clk 0:01:16.8]} 20... Ne4 {[%clk 0:00:29.5]} 21. Qg4
{[%clk 0:00:11.1]} 21... Ng3+ {[%clk 0:00:27.7]} 22. Kxh2 {[%clk 0:00:11.7]}
22... Nxf1+ {[%clk 0:00:28.6]} 23. Kg1 {[%clk 0:00:12.2]} 23... Nxd2 {[%clk
0:00:29.5]} 24. Nxd2 {[%clk 0:00:10.2]} 24... Qc5+ {[%clk 0:00:30]} 25. Kh1
{[%clk 0:00:08.4]} 25... Qxd5 {[%clk 0:00:30.6]} 26. Nf3 {[%clk 0:00:06.2]}
26... Nc6 {[%clk 0:00:31]} 27. Ne2 {[%clk 0:00:05.3]} 27... Be4 {[%clk
0:00:28.9]} 28. Nf4 {[%clk 0:00:04.3]} 28... Qc5 {[%clk 0:00:18.4]} 29. Nh5
{[%clk 0:00:03.9]} 29... Bg6 {[%clk 0:00:18.7]} 30. Nf4 {[%clk 0:00:03.7]} 30...
Ne5 {[%clk 0:00:18.8]} 31. Nxe5 {[%clk 0:00:03.4]} 31... Qxe5 {[%clk 0:00:19.7]}
32. Rf1 {[%clk 0:00:02.7]} 32... Qxb2 {[%clk 0:00:18.7]} 33. Bc4 {[%clk
0:00:02.1]} 33... Kh8 {[%clk 0:00:17.1]} 34. Nxg6+ {[%clk 0:00:01.9]} 34... fxg6
{[%clk 0:00:18]} 35. Rxf8+ {[%clk 0:00:01.7]} 35... Rxf8 {[%clk 0:00:18.9]} 36.
Bf7 {[%clk 0:00:02.1]} 36... Qc1+ {[%clk 0:00:16.1]} 37. Kh2 {[%clk 0:00:02.3]}
37... Qc7+ {[%clk 0:00:15.2]} 0-1